Workbook

Sheet 해선
B1: 현재가 | C1: 시가 | D1: 고가 | E1: 저가 | F1: 기준가 | G1: 전일대비 | I1: 현재가 | J1: 시가 | K1: 고가 | L1: 저가 | M1: 기준가 | N1: 전일대비 | Q1: =TODAY() -> 2020-11-16 | T1: =NOW() -> 44151.40215 | Y1: DDE DATA
A2: 선물 | B2: =+AA3 -> 338.45 | C2: =+AB3 -> 335.5 | D2: =+AC3 -> 338.7 | E2: =+AD3 -> 334.35 | F2: =+AE3 -> 333.1 | G2: =B2/F2-1 -> 0.01606124287 | H2: 코스피200 | I2: =+AI3 -> 338.43 | J2: =+AJ3 -> 335.2 | K2: =+AK3 -> 338.7 | L2: =+AL3 -> 335.2 | M2: =+AM3 -> 333.03 | N2: =I2/M2-1 -> 0.01621475543 | Q2: 기록시작 | T2: 44151.40026 | Y2: 종목코드 | Z2: 종목명 | AA2: 현재가 | AB2: 시가 | AC2: 고가 | AD2: 저가 | AE2: 기준가 | AG2: 종목코드 | AH2: 종목명 | AI2: 현재가 | AJ2: 시가 | AK2: 고가 | AL2: 저가 | AM2: 기준가
A3: CALL OPTION | G3: 시가등가 | H3: =ROUND(J2/2.5,0)*2.5 -> 335 | I3: PUT OPTION | Q3: CALL PUT 양합 | Y3: =[1]!'9001' -> '101QC000 | Z3: =[1]!'302' -> F 202012 | AA3: =[1]!'10' -> 338.45 | AB3: =[1]!'16' -> 335.5 | AC3: =[1]!'17' -> 338.7 | AD3: =[1]!'18' -> 334.35 | AE3: =[1]!'307' -> 333.1 | AG3: =[2]!'9001' -> '201 | AH3: =[2]!'302' -> KOSPI200 | AI3: =[2]!'10' -> 338.43 | AJ3: =[2]!'16' -> 335.2 | AK3: =[2]!'17' -> 338.7 | AL3: =[2]!'18' -> 335.2 | AM3: =[2]!'307' -> 333.03
A4: 현재위치 | B4: 현재가 | C4: 시가 | D4: 고가 | E4: 저가 | F4: 기준가 | I4: 현재가 | J4: 시가 | K4: 고가 | L4: 저가 | M4: 기준가 | N4: 현재위치 | O4: 우위 | P4: 차이 | Q4: 현재가 | R4: 시가 | S4: 고가 | T4: 저가 | U4: 기준가 | V4: 현재위치 | Y4: CALL OPTION | AG4: PUT OPTION
A5: =(B5-E5)/(D5-E5) -> 0.9333333333 | B5: =VLOOKUP($G5,$Y$6:$AE$50,3,FALSE) -> 0.26 | C5: =VLOOKUP($G5,$Y$6:$AE$50,4,FALSE) -> 0.13 | D5: =VLOOKUP($G5,$Y$6:$AE$50,5,FALSE) -> 0.27 | E5: =VLOOKUP($G5,$Y$6:$AE$50,6,FALSE) -> 0.12 | F5: =VLOOKUP($G5,$Y$6:$AE$50,7,FALSE) -> 0.09 | G5: =G6+2.5 -> 370 | H5: =H6-2.5 -> 300 | I5: =VLOOKUP($H5,$AG$6:$AM$50,3,FALSE) -> 0.37 | J5: =VLOOKUP($H5,$AG$6:$AM$50,4,FALSE) -> 0.43 | K5: =VLOOKUP($H5,$AG$6:$AM$50,5,FALSE) -> 0.46 | L5: =VLOOKUP($H5,$AG$6:$AM$50,6,FALSE) -> 0.35 | M5: =VLOOKUP($H5,$AG$6:$AM$50,7,FALSE) -> 0.56 | N5: =(I5-L5)/(K5-L5) -> 0.1818181818 | O5: =IF(B5>I5,"C",IF(B5<I5,"P","-")) -> P | P5: =ABS(B5-I5) -> 0.11 | Q5: =I5+B5 -> 0.63 | R5: =J5+C5 -> 0.56 | S5: 0.64 | T5: 0.56 | U5: =M5+F5 -> 0.65 | V5: =(Q5-T5)/(S5-T5) -> 0.875 | Y5: 종목명 | Z5: 종목코드 | AA5: 현재가 | AB5: 시가 | AC5: 고가 | AD5: 저가 | AE5: 기준가 | AG5: 종목명 | AH5: 종목코드 | AI5: 현재가 | AJ5: 시가 | AK5: 고가 | AL5: 저가 | AM5: 기준가
A6: =(B6-E6)/(D6-E6) -> 0.9 | B6: 0.34 | C6: 0.18 | D6: 0.36 | E6: 0.16 | F6: 0.12 | G6: 367.5 | H6: 302.5 | I6: 0.44 | J6: 0.51 | K6: 0.54 | L6: 0.42 | M6: 0.68 | N6: =(I6-L6)/(K6-L6) -> 0.1666666667 | O6: =IF(B6>I6,"C",IF(B6<I6,"P","-")) -> P | P6: =ABS(B6-I6) -> 0.1 | Q6: =I6+B6 -> 0.78 | R6: =J6+C6 -> 0.69 | S6: 0.79 | T6: 0.69 | U6: =M6+F6 -> 0.8 | V6: =(Q6-T6)/(S6-T6) -> 0.9 | X6: 1 | Y6: 270 | Z6: =[3]!'9001' -> '201QC270 | AA6: =[3]!'10' -> 63.15 | AB6: =[3]!'16' -> 0 | AC6: =[3]!'17' -> 0 | AD6: =[3]!'18' -> 0 | AE6: =[3]!'307' -> 63.15 | AG6: 270 | AH6: =[4]!'9001' -> '301QC270 | AI6: =[4]!'10' -> 0.07 | AJ6: =[4]!'16' -> 0.07 | AK6: =[4]!'17' -> 0.08 | AL6: =[4]!'18' -> 0.06 | AM6: =[4]!'307' -> 0.1
A7: 0.9230769231 | B7: 0.46 | C7: 0.23 | D7: 0.48 | E7: 0.22 | F7: 0.17 | G7: 365 | H7: 305 | I7: 0.52 | J7: 0.63 | K7: 0.66 | L7: 0.5 | M7: 0.81 | N7: 0.125 | O7: P | P7: 0.06 | Q7: 0.98 | R7: 0.86 | S7: 0.98 | T7: 0.86 | U7: 0.98 | V7: 1 | X7: 2 | Y7: =+Y6+2.5 -> 272.5 | Z7: =[5]!'9001' -> '201QC272 | AA7: =[5]!'10' -> 60.65 | AB7: =[5]!'16' -> 0 | AC7: =[5]!'17' -> 0 | AD7: =[5]!'18' -> 0 | AE7: =[5]!'307' -> 60.65 | AG7: =+AG6+2.5 -> 272.5 | AH7: =[6]!'9001' -> '301QC272 | AI7: =[6]!'10' -> 0.08 | AJ7: =[6]!'16' -> 0.09 | AK7: =[6]!'17' -> 0.09 | AL7: =[6]!'18' -> 0.07 | AM7: =[6]!'307' -> 0.11
A8: 0.9117647059 | B8: 0.61 | C8: 0.3 | D8: 0.64 | E8: 0.3 | F8: 0.23 | G8: 362.5 | H8: 307.5 | I8: 0.61 | J8: 0.75 | K8: 0.79 | L8: 0.59 | M8: 0.95 | N8: 0.1 | O8: - | P8: 0 | Q8: 1.22 | R8: 1.05 | S8: 1.23 | T8: 1.05 | U8: 1.18 | V8: 0.9444444444 | X8: 3 | Y8: =+Y7+2.5 -> 275 | Z8: =[7]!'9001' -> '201QC275 | AA8: =[7]!'10' -> 58.15 | AB8: =[7]!'16' -> 0 | AC8: =[7]!'17' -> 0 | AD8: =[7]!'18' -> 0 | AE8: =[7]!'307' -> 58.15 | AG8: 275 | AH8: =[8]!'9001' -> '301QC275 | AI8: =[8]!'10' -> 0.09 | AJ8: =[8]!'16' -> 0.1 | AK8: =[8]!'17' -> 0.1 | AL8: =[8]!'18' -> 0.08 | AM8: =[8]!'307' -> 0.13
A9: 0.9090909091 | B9: 0.81 | C9: 0.45 | D9: 0.85 | E9: 0.41 | F9: 0.33 | G9: 360 | H9: 310 | I9: 0.73 | J9: 0.89 | K9: 0.96 | L9: 0.71 | M9: 1.15 | N9: 0.08 | O9: C | P9: 0.08 | Q9: 1.54 | R9: 1.34 | S9: 1.56 | T9: 1.34 | U9: 1.48 | V9: 0.9090909091 | X9: 4 | Y9: 277.5 | Z9: =[9]!'9001' -> '201QC277 | AA9: =[9]!'10' -> 55.65 | AB9: =[9]!'16' -> 0 | AC9: =[9]!'17' -> 0 | AD9: =[9]!'18' -> 0 | AE9: =[9]!'307' -> 55.65 | AG9: 277.5 | AH9: =[10]!'9001' -> '301QC277 | AI9: =[10]!'10' -> 0.11 | AJ9: =[10]!'16' -> 0.11 | AK9: =[10]!'17' -> 0.11 | AL9: =[10]!'18' -> 0.09 | AM9: =[10]!'307' -> 0.14
A10: =(B10-E10)/(D10-E10) -> 0.9122807018 | B10: =VLOOKUP($G10,$Y$6:$AE$50,3,FALSE) -> 1.07 | C10: =VLOOKUP($G10,$Y$6:$AE$50,4,FALSE) -> 0.62 | D10: =VLOOKUP($G10,$Y$6:$AE$50,5,FALSE) -> 1.12 | E10: =VLOOKUP($G10,$Y$6:$AE$50,6,FALSE) -> 0.55 | F10: =VLOOKUP($G10,$Y$6:$AE$50,7,FALSE) -> 0.46 | G10: =G11+2.5 -> 357.5 | H10: 312.5 | I10: =VLOOKUP($H10,$AG$6:$AM$50,3,FALSE) -> 0.87 | J10: =VLOOKUP($H10,$AG$6:$AM$50,4,FALSE) -> 1.07 | K10: =VLOOKUP($H10,$AG$6:$AM$50,5,FALSE) -> 1.16 | L10: =VLOOKUP($H10,$AG$6:$AM$50,6,FALSE) -> 0.85 | M10: =VLOOKUP($H10,$AG$6:$AM$50,7,FALSE) -> 1.37 | N10: =(I10-L10)/(K10-L10) -> 0.06451612903 | O10: =IF(B10>I10,"C",IF(B10<I10,"P","-")) -> C | P10: =ABS(B10-I10) -> 0.2 | Q10: =I10+B10 -> 1.94 | R10: =J10+C10 -> 1.69 | S10: 1.96 | T10: 1.69 | U10: =M10+F10 -> 1.83 | V10: =(Q10-T10)/(S10-T10) -> 0.9259259259 | X10: 5 | Y10: 280 | Z10: =[11]!'9001' -> '201QC280 | AA10: =[11]!'10' -> 49.85 | AB10: =[11]!'16' -> 0 | AC10: =[11]!'17' -> 0 | AD10: =[11]!'18' -> 0 | AE10: =[11]!'307' -> 49.85 | AG10: 280 | AH10: =[12]!'9001' -> '301QC280 | AI10: =[12]!'10' -> 0.11 | AJ10: =[12]!'16' -> 0.12 | AK10: =[12]!'17' -> 0.13 | AL10: =[12]!'18' -> 0.11 | AM10: =[12]!'307' -> 0.16
A11: 0.9166666667 | B11: 1.41 | C11: 0.83 | D11: 1.47 | E11: 0.75 | F11: 0.62 | G11: 355 | H11: 315 | I11: 1.05 | J11: 1.29 | K11: 1.42 | L11: 1.03 | M11: 1.65 | N11: 0.05128205128 | O11: C | P11: 0.36 | Q11: =I11+B11 -> 2.46 | R11: =J11+C11 -> 2.12 | S11: 2.48 | T11: 2.12 | U11: =M11+F11 -> 2.27 | V11: 0.9444444444 | X11: 6 | Y11: 282.5 | Z11: =[13]!'9001' -> '201QC282 | AA11: =[13]!'10' -> 50.65 | AB11: =[13]!'16' -> 0 | AC11: =[13]!'17' -> 0 | AD11: =[13]!'18' -> 0 | AE11: =[13]!'307' -> 50.65 | AG11: 282.5 | AH11: =[14]!'9001' -> '301QC282 | AI11: =[14]!'10' -> 0.13 | AJ11: =[14]!'16' -> 0.14 | AK11: =[14]!'17' -> 0.14 | AL11: =[14]!'18' -> 0.13 | AM11: =[14]!'307' -> 0.19
A12: 0.9204545455 | B12: 1.83 | C12: 1.1 | D12: 1.9 | E12: 1.02 | F12: 0.84 | G12: 352.5 | H12: 317.5 | I12: 1.27 | J12: 1.55 | K12: 1.73 | L12: 1.25 | M12: 1.98 | N12: 0.04166666667 | O12: C | P12: 0.56 | Q12: 3.1 | R12: 2.65 | S12: 3.14 | T12: 2.65 | U12: 2.82 | V12: 0.9183673469 | X12: 7 | Y12: 285 | Z12: =[15]!'9001' -> '201QC285 | AA12: =[15]!'10' -> 48.15 | AB12: =[15]!'16' -> 0 | AC12: =[15]!'17' -> 0 | AD12: =[15]!'18' -> 0 | AE12: =[15]!'307' -> 48.15 | AG12: 285 | AH12: =[16]!'9001' -> '301QC285 | AI12: =[16]!'10' -> 0.15 | AJ12: =[16]!'16' -> 0.17 | AK12: =[16]!'17' -> 0.17 | AL12: =[16]!'18' -> 0.14 | AM12: =[16]!'307' -> 0.22
A13: 0.9259259259 | B13: 2.36 | C13: 1.5 | D13: 2.44 | E13: 1.36 | F13: 1.15 | G13: 350 | H13: 320 | I13: 1.55 | J13: 1.88 | K13: 2.1 | L13: 1.51 | M13: 2.4 | N13: 0.06779661017 | O13: C | P13: 0.81 | Q13: 3.91 | R13: 3.38 | S13: 3.94 | T13: 3.38 | U13: 3.55 | V13: 0.9464285714 | X13: 8 | Y13: 287.5 | Z13: =[17]!'9001' -> '201QC287 | AA13: =[17]!'10' -> 45.7 | AB13: =[17]!'16' -> 0 | AC13: =[17]!'17' -> 0 | AD13: =[17]!'18' -> 0 | AE13: =[17]!'307' -> 45.7 | AG13: 287.5 | AH13: =[18]!'9001' -> '301QC287 | AI13: =[18]!'10' -> 0.18 | AJ13: =[18]!'16' -> 0.18 | AK13: =[18]!'17' -> 0.19 | AL13: =[18]!'18' -> 0.17 | AM13: =[18]!'307' -> 0.25
A14: 0.9302325581 | B14: 3 | C14: 1.98 | D14: 3.09 | E14: 1.8 | F14: 1.55 | G14: 347.5 | H14: 322.5 | I14: 1.88 | J14: 2.31 | K14: 2.56 | L14: 1.85 | M14: 2.9 | N14: 0.04225352113 | O14: C | P14: 1.12 | Q14: 4.88 | R14: 4.29 | S14: 4.93 | T14: 4.29 | U14: 4.45 | V14: 0.921875 | X14: 9 | Y14: 290 | Z14: =[19]!'9001' -> '201QC290 | AA14: =[19]!'10' -> 48.55 | AB14: =[19]!'16' -> 47.8 | AC14: =[19]!'17' -> 48.75 | AD14: =[19]!'18' -> 47.8 | AE14: =[19]!'307' -> 41.4 | AG14: 290 | AH14: =[20]!'9001' -> '301QC290 | AI14: =[20]!'10' -> 0.2 | AJ14: =[20]!'16' -> 0.22 | AK14: =[20]!'17' -> 0.23 | AL14: =[20]!'18' -> 0.19 | AM14: =[20]!'307' -> 0.31
A15: 0.9342105263 | B15: 3.78 | C15: 2.58 | D15: 3.88 | E15: 2.36 | F15: 2.05 | G15: 345 | H15: 325 | I15: 2.3 | J15: 2.81 | K15: 3.11 | L15: 2.27 | M15: 3.5 | N15: 0.03571428571 | O15: C | P15: 1.48 | Q15: 6.08 | R15: 5.39 | S15: 6.12 | T15: 5.39 | U15: 5.55 | V15: 0.9452054795 | X15: 10 | Y15: 292.5 | Z15: =[21]!'9001' -> '201QC292 | AA15: =[21]!'10' -> 40.8 | AB15: =[21]!'16' -> 0 | AC15: =[21]!'17' -> 0 | AD15: =[21]!'18' -> 0 | AE15: =[21]!'307' -> 40.8 | AG15: 292.5 | AH15: =[22]!'9001' -> '301QC292 | AI15: =[22]!'10' -> 0.24 | AJ15: =[22]!'16' -> 0.26 | AK15: =[22]!'17' -> 0.27 | AL15: =[22]!'18' -> 0.22 | AM15: =[22]!'307' -> 0.35
A16: 0.9378531073 | B16: 4.71 | C16: 3.32 | D16: 4.82 | E16: 3.05 | F16: 2.66 | G16: 342.5 | H16: 327.5 | I16: 2.81 | J16: 3.42 | K16: 3.79 | L16: 2.76 | M16: 4.23 | N16: 0.04854368932 | O16: C | P16: 1.9 | Q16: 7.52 | R16: 6.74 | S16: 7.58 | T16: 6.74 | U16: 6.89 | V16: 0.9285714286 | X16: 11 | Y16: 295 | Z16: =[23]!'9001' -> '201QC295 | AA16: =[23]!'10' -> 42.4 | AB16: =[23]!'16' -> 42.35 | AC16: =[23]!'17' -> 42.4 | AD16: =[23]!'18' -> 42.25 | AE16: =[23]!'307' -> 38.35 | AG16: 295 | AH16: =[24]!'9001' -> '301QC295 | AI16: =[24]!'10' -> 0.27 | AJ16: =[24]!'16' -> 0.31 | AK16: =[24]!'17' -> 0.32 | AL16: =[24]!'18' -> 0.25 | AM16: =[24]!'307' -> 0.4
A17: 0.9458128079 | B17: 5.81 | C17: 4.22 | D17: 5.92 | E17: 3.89 | F17: 3.42 | G17: 340 | H17: 330 | I17: 3.42 | J17: 4.15 | K17: 4.57 | L17: 3.38 | M17: 5.1 | N17: 0.03361344538 | O17: C | P17: 2.39 | Q17: 9.23 | R17: 8.37 | S17: 9.3 | T17: 8.37 | U17: 8.52 | V17: 0.9247311828 | X17: 12 | Y17: 297.5 | Z17: =[25]!'9001' -> '201QC297 | AA17: =[25]!'10' -> 40.15 | AB17: =[25]!'16' -> 39.85 | AC17: =[25]!'17' -> 40.15 | AD17: =[25]!'18' -> 39.85 | AE17: =[25]!'307' -> 35.15 | AG17: 297.5 | AH17: =[26]!'9001' -> '301QC297 | AI17: =[26]!'10' -> 0.31 | AJ17: =[26]!'16' -> 0.33 | AK17: =[26]!'17' -> 0.38 | AL17: =[26]!'18' -> 0.3 | AM17: =[26]!'307' -> 0.49
A18: 0.9437229437 | B18: 7.07 | C18: 5.32 | D18: 7.2 | E18: 4.89 | F18: 4.34 | G18: 337.5 | H18: =H19-2.5 -> 332.5 | I18: 4.17 | J18: 5.04 | K18: 5.56 | L18: 4.12 | M18: 6.13 | N18: 0.03472222222 | O18: C | P18: 2.9 | Q18: 11.24 | R18: 10.36 | S18: 11.31 | T18: 10.36 | U18: 10.47 | V18: 0.9263157895 | X18: 13 | Y18: 300 | Z18: =[27]!'9001' -> '201QC300 | AA18: =[27]!'10' -> 38 | AB18: =[27]!'16' -> 37.6 | AC18: =[27]!'17' -> 38 | AD18: =[27]!'18' -> 37.6 | AE18: =[27]!'307' -> 33.4 | AG18: 300 | AH18: =[28]!'9001' -> '301QC300 | AI18: =[28]!'10' -> 0.37 | AJ18: =[28]!'16' -> 0.43 | AK18: =[28]!'17' -> 0.46 | AL18: =[28]!'18' -> 0.35 | AM18: =[28]!'307' -> 0.56
A19: 0.95703125 | B19: 8.53 | C19: 6.6 | D19: 8.64 | E19: 6.08 | F19: 5.45 | G19: =+H3 -> 335 | H19: =+H3 -> 335 | I19: 5.06 | J19: 6.08 | K19: 6.55 | L19: 5 | M19: 7.39 | N19: 0.03870967742 | O19: C | P19: 3.47 | Q19: 13.59 | R19: 12.68 | S19: 13.64 | T19: 12.68 | U19: 12.84 | V19: 0.9479166667 | X19: 14 | Y19: 302.5 | Z19: =[29]!'9001' -> '201QC302 | AA19: =[29]!'10' -> 36.2 | AB19: =[29]!'16' -> 35.2 | AC19: =[29]!'17' -> 36.2 | AD19: =[29]!'18' -> 35.2 | AE19: =[29]!'307' -> 30.35 | AG19: 302.5 | AH19: =[30]!'9001' -> '301QC302 | AI19: =[30]!'10' -> 0.44 | AJ19: =[30]!'16' -> 0.51 | AK19: =[30]!'17' -> 0.54 | AL19: =[30]!'18' -> 0.42 | AM19: =[30]!'307' -> 0.68
A20: 0.9448529412 | B20: 10.15 | C20: 8.04 | D20: 10.3 | E20: 7.58 | F20: 6.76 | G20: =G19-2.5 -> 332.5 | H20: =H19+2.5 -> 337.5 | I20: 6.12 | J20: 6.85 | K20: 7.17 | L20: 6.01 | M20: 8.79 | N20: 0.09482758621 | O20: C | P20: 4.03 | Q20: 16.27 | R20: 14.89 | S20: 16.32 | T20: 14.89 | U20: 15.55 | V20: 0.965034965 | X20: 15 | Y20: 305 | Z20: =[31]!'9001' -> '201QC305 | AA20: =[31]!'10' -> 33.95 | AB20: =[31]!'16' -> 32 | AC20: =[31]!'17' -> 34.1 | AD20: =[31]!'18' -> 32 | AE20: =[31]!'307' -> 28.85 | AG20: 305 | AH20: =[32]!'9001' -> '301QC305 | AI20: =[32]!'10' -> 0.52 | AJ20: =[32]!'16' -> 0.63 | AK20: =[32]!'17' -> 0.66 | AL20: =[32]!'18' -> 0.5 | AM20: =[32]!'307' -> 0.81
A21: 0.9772727273 | B21: 11.95 | C21: 9.8 | D21: 12 | E21: 9.8 | F21: 8.24 | G21: =G20-2.5 -> 330 | H21: =H20+2.5 -> 340 | I21: 7.33 | J21: 8.3 | K21: 8.49 | L21: 7.33 | M21: 10.3 | N21: 0 | O21: C | P21: 4.62 | Q21: 19.28 | R21: 18.1 | S21: 19.33 | T21: 18.1 | U21: 18.54 | V21: 0.9593495935 | X21: 16 | Y21: 307.5 | Z21: =[33]!'9001' -> '201QC307 | AA21: =[33]!'10' -> 31.25 | AB21: =[33]!'16' -> 30.55 | AC21: =[33]!'17' -> 31.25 | AD21: =[33]!'18' -> 30.55 | AE21: =[33]!'307' -> 23.35 | AG21: 307.5 | AH21: =[34]!'9001' -> '301QC307 | AI21: =[34]!'10' -> 0.61 | AJ21: =[34]!'16' -> 0.75 | AK21: =[34]!'17' -> 0.79 | AL21: =[34]!'18' -> 0.59 | AM21: =[34]!'307' -> 0.95
A22: 1 | B22: 13.9 | C22: 13.65 | D22: 13.9 | E22: 11.5 | F22: 9.8 | G22: =G21-2.5 -> 327.5 | H22: =H21+2.5 -> 342.5 | I22: 9.01 | J22: 9.45 | K22: 9.52 | L22: 8.81 | M22: 12.65 | N22: 0.2816901408 | O22: C | P22: 4.89 | Q22: 22.91 | R22: 23.1 | S22: 23.1 | T22: 22.51 | U22: 22.45 | V22: 0.6779661017 | X22: 17 | Y22: 310 | Z22: =[35]!'9001' -> '201QC310 | AA22: =[35]!'10' -> 28.8 | AB22: =[35]!'16' -> 27.85 | AC22: =[35]!'17' -> 28.8 | AD22: =[35]!'18' -> 27.15 | AE22: =[35]!'307' -> 24.25 | AG22: 310 | AH22: =[36]!'9001' -> '301QC310 | AI22: =[36]!'10' -> 0.73 | AJ22: =[36]!'16' -> 0.89 | AK22: =[36]!'17' -> 0.96 | AL22: =[36]!'18' -> 0.71 | AM22: =[36]!'307' -> 1.15
A23: 1 | B23: 15.8 | C23: 12.7 | D23: 15.8 | E23: 12.7 | F23: 11.55 | G23: =G22-2.5 -> 325 | H23: =H22+2.5 -> 345 | I23: 10.5 | J23: 11.4 | K23: 11.75 | L23: 10.3 | M23: 13.9 | N23: 0.1379310345 | O23: C | P23: 5.3 | Q23: 26.3 | R23: 24.1 | S23: 26.3 | T23: 24.1 | U23: 25.45 | V23: 1 | X23: 18 | Y23: 312.5 | Z23: =[37]!'9001' -> '201QC312 | AA23: =[37]!'10' -> 25.8 | AB23: =[37]!'16' -> 25.8 | AC23: =[37]!'17' -> 25.8 | AD23: =[37]!'18' -> 25.8 | AE23: =[37]!'307' -> 21.95 | AG23: 312.5 | AH23: =[38]!'9001' -> '301QC312 | AI23: =[38]!'10' -> 0.87 | AJ23: =[38]!'16' -> 1.07 | AK23: =[38]!'17' -> 1.16 | AL23: =[38]!'18' -> 0.85 | AM23: =[38]!'307' -> 1.37
A24: 0.9545454545 | B24: 17.9 | C24: 15.8 | D24: 18 | E24: 15.8 | F24: 13.4 | G24: =G23-2.5 -> 322.5 | H24: =H23+2.5 -> 347.5 | I24: 12.2 | J24: 13.1 | K24: 13.1 | L24: 12.1 | M24: 16.5 | N24: 0.1 | O24: C | P24: 5.7 | Q24: 30.1 | R24: 28.9 | S24: 30.1 | T24: 28.9 | U24: 29.9 | V24: 1 | X24: 19 | Y24: 315 | Z24: =[39]!'9001' -> '201QC315 | AA24: =[39]!'10' -> 19.7 | AB24: =[39]!'16' -> 0 | AC24: =[39]!'17' -> 0 | AD24: =[39]!'18' -> 0 | AE24: =[39]!'307' -> 19.7 | AG24: 315 | AH24: =[40]!'9001' -> '301QC315 | AI24: =[40]!'10' -> 1.05 | AJ24: =[40]!'16' -> 1.29 | AK24: =[40]!'17' -> 1.42 | AL24: =[40]!'18' -> 1.03 | AM24: =[40]!'307' -> 1.65
X25: 20 | Y25: 317.5 | Z25: =[41]!'9001' -> '201QC317 | AA25: =[41]!'10' -> 20.55 | AB25: =[41]!'16' -> 20.55 | AC25: =[41]!'17' -> 20.55 | AD25: =[41]!'18' -> 20.55 | AE25: =[41]!'307' -> 17.15 | AG25: 317.5 | AH25: =[42]!'9001' -> '301QC317 | AI25: =[42]!'10' -> 1.27 | AJ25: =[42]!'16' -> 1.55 | AK25: =[42]!'17' -> 1.73 | AL25: =[42]!'18' -> 1.25 | AM25: =[42]!'307' -> 1.98
X26: 21 | Y26: 320 | Z26: =[43]!'9001' -> '201QC320 | AA26: =[43]!'10' -> 19.75 | AB26: =[43]!'16' -> 17.5 | AC26: =[43]!'17' -> 20 | AD26: =[43]!'18' -> 17.5 | AE26: =[43]!'307' -> 15.45 | AG26: 320 | AH26: =[44]!'9001' -> '301QC320 | AI26: =[44]!'10' -> 1.55 | AJ26: =[44]!'16' -> 1.88 | AK26: =[44]!'17' -> 2.1 | AL26: =[44]!'18' -> 1.51 | AM26: =[44]!'307' -> 2.4
X27: 22 | Y27: 322.5 | Z27: =[45]!'9001' -> '201QC322 | AA27: =[45]!'10' -> 17.9 | AB27: =[45]!'16' -> 15.8 | AC27: =[45]!'17' -> 18 | AD27: =[45]!'18' -> 15.8 | AE27: =[45]!'307' -> 13.4 | AG27: 322.5 | AH27: =[46]!'9001' -> '301QC322 | AI27: =[46]!'10' -> 1.88 | AJ27: =[46]!'16' -> 2.31 | AK27: =[46]!'17' -> 2.56 | AL27: =[46]!'18' -> 1.85 | AM27: =[46]!'307' -> 2.9
X28: 23 | Y28: 325 | Z28: =[47]!'9001' -> '201QC325 | AA28: =[47]!'10' -> 15.8 | AB28: =[47]!'16' -> 12.7 | AC28: =[47]!'17' -> 15.8 | AD28: =[47]!'18' -> 12.7 | AE28: =[47]!'307' -> 11.55 | AG28: 325 | AH28: =[48]!'9001' -> '301QC325 | AI28: =[48]!'10' -> 2.3 | AJ28: =[48]!'16' -> 2.81 | AK28: =[48]!'17' -> 3.11 | AL28: =[48]!'18' -> 2.27 | AM28: =[48]!'307' -> 3.5
X29: 24 | Y29: 327.5 | Z29: =[49]!'9001' -> '201QC327 | AA29: =[49]!'10' -> 13.9 | AB29: =[49]!'16' -> 13.65 | AC29: =[49]!'17' -> 13.9 | AD29: =[49]!'18' -> 11.5 | AE29: =[49]!'307' -> 9.8 | AG29: 327.5 | AH29: =[50]!'9001' -> '301QC327 | AI29: =[50]!'10' -> 2.81 | AJ29: =[50]!'16' -> 3.42 | AK29: =[50]!'17' -> 3.79 | AL29: =[50]!'18' -> 2.76 | AM29: =[50]!'307' -> 4.23
X30: 25 | Y30: 330 | Z30: =[51]!'9001' -> '201QC330 | AA30: =[51]!'10' -> 11.95 | AB30: =[51]!'16' -> 9.8 | AC30: =[51]!'17' -> 12 | AD30: =[51]!'18' -> 9.8 | AE30: =[51]!'307' -> 8.24 | AG30: 330 | AH30: =[52]!'9001' -> '301QC330 | AI30: =[52]!'10' -> 3.42 | AJ30: =[52]!'16' -> 4.15 | AK30: =[52]!'17' -> 4.57 | AL30: =[52]!'18' -> 3.38 | AM30: =[52]!'307' -> 5.1
X31: 26 | Y31: 332.5 | Z31: =[53]!'9001' -> '201QC332 | AA31: =[53]!'10' -> 10.15 | AB31: =[53]!'16' -> 8.04 | AC31: =[53]!'17' -> 10.3 | AD31: =[53]!'18' -> 7.58 | AE31: =[53]!'307' -> 6.76 | AG31: 332.5 | AH31: =[54]!'9001' -> '301QC332 | AI31: =[54]!'10' -> 4.17 | AJ31: =[54]!'16' -> 5.04 | AK31: =[54]!'17' -> 5.56 | AL31: =[54]!'18' -> 4.12 | AM31: =[54]!'307' -> 6.13
X32: 27 | Y32: 335 | Z32: =[55]!'9001' -> '201QC335 | AA32: =[55]!'10' -> 8.53 | AB32: =[55]!'16' -> 6.6 | AC32: =[55]!'17' -> 8.64 | AD32: =[55]!'18' -> 6.08 | AE32: =[55]!'307' -> 5.45 | AG32: 335 | AH32: =[56]!'9001' -> '301QC335 | AI32: =[56]!'10' -> 5.06 | AJ32: =[56]!'16' -> 6.08 | AK32: =[56]!'17' -> 6.55 | AL32: =[56]!'18' -> 5 | AM32: =[56]!'307' -> 7.39
X33: 28 | Y33: 337.5 | Z33: =[57]!'9001' -> '201QC337 | AA33: =[57]!'10' -> 7.07 | AB33: =[57]!'16' -> 5.32 | AC33: =[57]!'17' -> 7.2 | AD33: =[57]!'18' -> 4.89 | AE33: =[57]!'307' -> 4.34 | AG33: 337.5 | AH33: =[58]!'9001' -> '301QC337 | AI33: =[58]!'10' -> 6.12 | AJ33: =[58]!'16' -> 6.85 | AK33: =[58]!'17' -> 7.17 | AL33: =[58]!'18' -> 6.01 | AM33: =[58]!'307' -> 8.79
X34: 29 | Y34: 340 | Z34: =[59]!'9001' -> '201QC340 | AA34: =[59]!'10' -> 5.81 | AB34: =[59]!'16' -> 4.22 | AC34: =[59]!'17' -> 5.92 | AD34: =[59]!'18' -> 3.89 | AE34: =[59]!'307' -> 3.42 | AG34: 340 | AH34: =[60]!'9001' -> '301QC340 | AI34: =[60]!'10' -> 7.33 | AJ34: =[60]!'16' -> 8.3 | AK34: =[60]!'17' -> 8.49 | AL34: =[60]!'18' -> 7.33 | AM34: =[60]!'307' -> 10.3
X35: 30 | Y35: 342.5 | Z35: =[61]!'9001' -> '201QC342 | AA35: =[61]!'10' -> 4.71 | AB35: =[61]!'16' -> 3.32 | AC35: =[61]!'17' -> 4.82 | AD35: =[61]!'18' -> 3.05 | AE35: =[61]!'307' -> 2.66 | AG35: 342.5 | AH35: =[62]!'9001' -> '301QC342 | AI35: =[62]!'10' -> 9.01 | AJ35: =[62]!'16' -> 9.45 | AK35: =[62]!'17' -> 9.52 | AL35: =[62]!'18' -> 8.81 | AM35: =[62]!'307' -> 12.65
X36: 31 | Y36: 345 | Z36: =[63]!'9001' -> '201QC345 | AA36: =[63]!'10' -> 3.78 | AB36: =[63]!'16' -> 2.58 | AC36: =[63]!'17' -> 3.88 | AD36: =[63]!'18' -> 2.36 | AE36: =[63]!'307' -> 2.05 | AG36: 345 | AH36: =[64]!'9001' -> '301QC345 | AI36: =[64]!'10' -> 10.5 | AJ36: =[64]!'16' -> 11.4 | AK36: =[64]!'17' -> 11.75 | AL36: =[64]!'18' -> 10.3 | AM36: =[64]!'307' -> 13.9
X37: 32 | Y37: 347.5 | Z37: =[65]!'9001' -> '201QC347 | AA37: =[65]!'10' -> 3 | AB37: =[65]!'16' -> 1.98 | AC37: =[65]!'17' -> 3.09 | AD37: =[65]!'18' -> 1.8 | AE37: =[65]!'307' -> 1.55 | AG37: 347.5 | AH37: =[66]!'9001' -> '301QC347 | AI37: =[66]!'10' -> 12.2 | AJ37: =[66]!'16' -> 13.1 | AK37: =[66]!'17' -> 13.1 | AL37: =[66]!'18' -> 12.1 | AM37: =[66]!'307' -> 16.5
X38: 33 | Y38: 350 | Z38: =[67]!'9001' -> '201QC350 | AA38: =[67]!'10' -> 2.36 | AB38: =[67]!'16' -> 1.5 | AC38: =[67]!'17' -> 2.44 | AD38: =[67]!'18' -> 1.36 | AE38: =[67]!'307' -> 1.15 | AG38: 350 | AH38: =[68]!'9001' -> '301QC350 | AI38: =[68]!'10' -> 14.05 | AJ38: =[68]!'16' -> 15 | AK38: =[68]!'17' -> 15.25 | AL38: =[68]!'18' -> 13.85 | AM38: =[68]!'307' -> 18.2
X39: 34 | Y39: 352.5 | Z39: =[69]!'9001' -> '201QC352 | AA39: =[69]!'10' -> 1.83 | AB39: =[69]!'16' -> 1.1 | AC39: =[69]!'17' -> 1.9 | AD39: =[69]!'18' -> 1.02 | AE39: =[69]!'307' -> 0.84 | AG39: 352.5 | AH39: =[70]!'9001' -> '301QC352 | AI39: =[70]!'10' -> 15.95 | AJ39: =[70]!'16' -> 15.9 | AK39: =[70]!'17' -> 16 | AL39: =[70]!'18' -> 15.9 | AM39: =[70]!'307' -> 21.05
X40: 35 | Y40: 355 | Z40: =[71]!'9001' -> '201QC355 | AA40: =[71]!'10' -> 1.41 | AB40: =[71]!'16' -> 0.83 | AC40: =[71]!'17' -> 1.47 | AD40: =[71]!'18' -> 0.75 | AE40: =[71]!'307' -> 0.62 | AG40: 355 | AH40: =[72]!'9001' -> '301QC355 | AI40: =[72]!'10' -> 23.8 | AJ40: =[72]!'16' -> 0 | AK40: =[72]!'17' -> 0 | AL40: =[72]!'18' -> 0 | AM40: =[72]!'307' -> 23.8
X41: 36 | Y41: 357.5 | Z41: =[73]!'9001' -> '201QC357 | AA41: =[73]!'10' -> 1.07 | AB41: =[73]!'16' -> 0.62 | AC41: =[73]!'17' -> 1.12 | AD41: =[73]!'18' -> 0.55 | AE41: =[73]!'307' -> 0.46 | AG41: 357.5 | AH41: =[74]!'9001' -> '301QC357 | AI41: =[74]!'10' -> 27.15 | AJ41: =[74]!'16' -> 0 | AK41: =[74]!'17' -> 0 | AL41: =[74]!'18' -> 0 | AM41: =[74]!'307' -> 27.15
X42: 37 | Y42: 360 | Z42: =[75]!'9001' -> '201QC360 | AA42: =[75]!'10' -> 0.81 | AB42: =[75]!'16' -> 0.45 | AC42: =[75]!'17' -> 0.85 | AD42: =[75]!'18' -> 0.41 | AE42: =[75]!'307' -> 0.33 | AG42: 360 | AH42: =[76]!'9001' -> '301QC360 | AI42: =[76]!'10' -> 28.05 | AJ42: =[76]!'16' -> 0 | AK42: =[76]!'17' -> 0 | AL42: =[76]!'18' -> 0 | AM42: =[76]!'307' -> 28.05
X43: 38 | Y43: 362.5 | Z43: =[77]!'9001' -> '201QC362 | AA43: =[77]!'10' -> 0.61 | AB43: =[77]!'16' -> 0.3 | AC43: =[77]!'17' -> 0.64 | AD43: =[77]!'18' -> 0.3 | AE43: =[77]!'307' -> 0.23 | AG43: 362.5 | AH43: =[78]!'9001' -> '301QC362 | AI43: =[78]!'10' -> 24.65 | AJ43: =[78]!'16' -> 24.65 | AK43: =[78]!'17' -> 24.65 | AL43: =[78]!'18' -> 24.65 | AM43: =[78]!'307' -> 30.5
X44: 39 | Y44: 365 | Z44: =[79]!'9001' -> '201QC365 | AA44: =[79]!'10' -> 0.46 | AB44: =[79]!'16' -> 0.23 | AC44: =[79]!'17' -> 0.48 | AD44: =[79]!'18' -> 0.22 | AE44: =[79]!'307' -> 0.17 | AG44: 365 | AH44: =[80]!'9001' -> '301QC365 | AI44: =[80]!'10' -> 33.9 | AJ44: =[80]!'16' -> 0 | AK44: =[80]!'17' -> 0 | AL44: =[80]!'18' -> 0 | AM44: =[80]!'307' -> 33.9
X45: 40 | Y45: 367.5 | Z45: =[81]!'9001' -> '201QC367 | AA45: =[81]!'10' -> 0.34 | AB45: =[81]!'16' -> 0.18 | AC45: =[81]!'17' -> 0.36 | AD45: =[81]!'18' -> 0.16 | AE45: =[81]!'307' -> 0.12 | AG45: 367.5 | AH45: =[82]!'9001' -> '301QC367 | AI45: =[82]!'10' -> 34.4 | AJ45: =[82]!'16' -> 0 | AK45: =[82]!'17' -> 0 | AL45: =[82]!'18' -> 0 | AM45: =[82]!'307' -> 34.4
X46: 41 | Y46: 370 | Z46: =[83]!'9001' -> '201QC370 | AA46: =[83]!'10' -> 0.26 | AB46: =[83]!'16' -> 0.13 | AC46: =[83]!'17' -> 0.27 | AD46: =[83]!'18' -> 0.12 | AE46: =[83]!'307' -> 0.09 | AG46: 370 | AH46: =[84]!'9001' -> '301QC370 | AI46: =[84]!'10' -> 38.5 | AJ46: =[84]!'16' -> 0 | AK46: =[84]!'17' -> 0 | AL46: =[84]!'18' -> 0 | AM46: =[84]!'307' -> 38.5
X47: 42 | Y47: 372.5 | Z47: =[85]!'9001' -> '201QC372 | AA47: =[85]!'10' -> 0.19 | AB47: =[85]!'16' -> 0.09 | AC47: =[85]!'17' -> 0.2 | AD47: =[85]!'18' -> 0.09 | AE47: =[85]!'307' -> 0.06 | AG47: 372.5 | AH47: =[86]!'9001' -> '301QC372 | AI47: =[86]!'10' -> 35.55 | AJ47: =[86]!'16' -> 36 | AK47: =[86]!'17' -> 36 | AL47: =[86]!'18' -> 35.55 | AM47: =[86]!'307' -> 40.6
X48: 43 | Y48: 375 | Z48: =[87]!'9001' -> '201QC375 | AA48: =[87]!'10' -> 0.15 | AB48: =[87]!'16' -> 0.07 | AC48: =[87]!'17' -> 0.15 | AD48: =[87]!'18' -> 0.07 | AE48: =[87]!'307' -> 0.05 | AG48: 375 | AH48: =[88]!'9001' -> '301QC375 | AI48: =[88]!'10' -> 41.8 | AJ48: =[88]!'16' -> 0 | AK48: =[88]!'17' -> 0 | AL48: =[88]!'18' -> 0 | AM48: =[88]!'307' -> 41.8
X49: 44 | Y49: 377.5 | Z49: =[89]!'9001' -> '201QC377 | AA49: =[89]!'10' -> 0.11 | AB49: =[89]!'16' -> 0.05 | AC49: =[89]!'17' -> 0.11 | AD49: =[89]!'18' -> 0.05 | AE49: =[89]!'307' -> 0.03 | AG49: 377.5 | AH49: =[90]!'9001' -> '301QC377 | AI49: =[90]!'10' -> 44.35 | AJ49: =[90]!'16' -> 0 | AK49: =[90]!'17' -> 0 | AL49: =[90]!'18' -> 0 | AM49: =[90]!'307' -> 44.35
X50: 45 | Y50: 380 | Z50: =[91]!'9001' -> '201QC380 | AA50: =[91]!'10' -> 0.08 | AB50: =[91]!'16' -> 0.04 | AC50: =[91]!'17' -> 0.08 | AD50: =[91]!'18' -> 0.04 | AE50: =[91]!'307' -> 0.03 | AG50: 380 | AH50: =[92]!'9001' -> '301QC380 | AI50: =[92]!'10' -> 46.85 | AJ50: =[92]!'16' -> 0 | AK50: =[92]!'17' -> 0 | AL50: =[92]!'18' -> 0 | AM50: =[92]!'307' -> 46.85
